fUSD/lending_fUSD_20240329
["ID","MTS","AMOUNT","RATE_DAILY","PERIOD"]
[320946752,1711720287848,-500.0,0.00052054,120]
[320946753,1711720287858,-679.26,0.00052054,120]
[320946754,1711720287868,-713.39,0.00052054,120]
[320946755,1711720287878,-885.4,0.00052054,120]
[320946756,1711720287889,-500.0,0.00052054,120]
[320946757,1711720287898,-500.0,0.00052054,120]
[320946758,1711720287908,-1238.51,0.00052054,120]
[320946759,1711720287918,-500.0,0.00052054,120]
[320946760,1711720287927,-1635.01,0.00052054,120]
[320946761,1711720287937,-576.18,0.00052054,120]
[320946762,1711720287948,-855.16,0.00052054,120]
[320946763,1711720287958,-500.0,0.00052054,120]
[320946764,1711720287967,-531.08,0.00052054,120]
[320946765,1711720287977,-500.0,0.00052054,120]
[320946766,1711720287988,-500.0,0.00052054,120]
[320946767,1711720287998,-500.0,0.00052054,120]
[320946768,1711720288008,-534.13,0.00052054,120]
[320946769,1711720288019,-500.0,0.00052054,120]
[320946770,1711720288029,-6532.1,0.00052054,120]
[320946771,1711720288040,-523.64,0.00052054,120]
[320946772,1711720288050,-560.66,0.00052054,120]
[320946773,1711720288060,-502.42,0.00052054,120]
[320946774,1711720288071,-723.57,0.00052054,120]
[320946775,1711720288082,-1682.83,0.00052054,120]
[320946776,1711720288092,-638.67,0.00052054,120]
[320946777,1711720288102,-503.68,0.00052054,120]
[320946778,1711720288112,-1618.73,0.00052054,120]
[320946779,1711720288123,-3551.69,0.00052054,120]
[320946780,1711720288133,-500.0,0.00052054,120]
[320946781,1711720288144,-500.0,0.00052054,120]
[320946782,1711720288154,-1902.79,0.00052054,120]
[320946783,1711720288166,-500.0,0.00052054,120]
[320946784,1711720288176,-523.06,0.00052054,120]
[320946785,1711720288188,-500.0,0.00052054,120]
[320946786,1711720288198,-783.41,0.00052054,120]
[320946787,1711720288208,-1110.8,0.00052054,120]
[320946788,1711720288218,-500.0,0.00052054,120]
[320946789,1711720288227,-500.0,0.00052054,120]
[320946790,1711720288237,-516.74,0.00052054,120]
[320946791,1711720288246,-500.0,0.00052054,120]
[320946792,1711720288255,-728.83,0.00052054,21]
[320946793,1711720288266,-500.0,0.00052054,120]
[320946794,1711720288276,-1108.05,0.00052054,120]
[320946795,1711720288285,-515.31898805,0.00052054,120]
[320946796,1711720288296,-988.84,0.00052054,120]
[320946797,1711720288305,-500.0,0.00052054,120]
[320946798,1711720288315,-627.93,0.00052054,120]
[320946799,1711720288325,-500.0,0.00052054,120]
[320946800,1711720288335,-500.0,0.00052054,120]
[320946801,1711720288345,-743.49,0.00052054,120]
[320946802,1711720288356,-500.0,0.00052054,2]
[320946803,1711720288365,-1845.14,0.00052054,120]
[320946804,1711720288375,-826.94,0.00052054,120]
[320946805,1711720288389,-838.3,0.00052054,120]
[320946806,1711720288399,-679.1,0.00052054,120]
[320946807,1711720288426,-2055.89,0.00052054,120]
[320946808,1711720288436,-617.83,0.00052054,120]
[320946809,1711720288446,-500.0,0.00052054,120]
[320946810,1711720288456,-1240.17,0.00052054,120]
[320946811,1711720288465,-500.0,0.00052054,120]
[320946812,1711720288476,-500.0,0.00052054,120]
[320946813,1711720288486,-663.18,0.00052054,120]
[320946814,1711720288497,-500.0,0.00052054,120]
[320946815,1711720288506,-500.0,0.00052054,120]
[320946816,1711720288516,-493.15,0.00052054,120]
[320946817,1711720288525,-1451.79,0.00052054,120]
[320946818,1711720288535,-500.0,0.00052054,120]
[320946819,1711720288545,-500.0,0.00052054,120]
[320946820,1711720288556,-500.0,0.00052054,2]
[320946821,1711720288566,-500.0,0.00052054,120]
[320946822,1711720288577,-500.0,0.00052054,120]
[320946823,1711720288587,-697.14,0.00052054,120]
[320946824,1711720288597,-1038.95,0.00052054,120]
[320946825,1711720288607,-500.0,0.00052094,120]
[320946826,1711720288617,-500.0,0.00052217,120]
[320946827,1711720288627,-500.0,0.00052217,120]
[320946828,1711720288636,-500.0,0.00052217,120]
[320946829,1711720288646,-1137.41,0.00052217,120]
[320946830,1711720288656,-500.0,0.00052217,120]
[320946831,1711720288669,-500.0,0.00052217,120]
[320946832,1711720288679,-500.0,0.00052217,120]
[320946833,1711720288689,-500.0,0.00052217,120]
[320946834,1711720288699,-500.0,0.00052217,120]
[320946835,1711720288708,-500.0,0.00052217,120]
[320946836,1711720288719,-500.0,0.00052217,120]
[320946837,1711720288729,-500.0,0.00052217,120]
[320946838,1711720288740,-500.0,0.00052217,120]
[320946839,1711720288751,-500.0,0.00052217,120]
[320946840,1711720288761,-500.0,0.00052217,120]
[320946841,1711720288771,-500.0,0.00052217,120]
[320946842,1711720288781,-500.0,0.00052217,120]
[320946843,1711720288791,-500.0,0.00052217,120]
[320946844,1711720288801,-523.88614735,0.00052217,120]
[320946845,1711720288810,-500.0,0.00052217,120]
[320946846,1711720288820,-500.0,0.00052217,120]
[320946847,1711720288830,-500.0,0.00052217,120]
[320946848,1711720288840,-500.0,0.00052217,120]
[320946849,1711720288850,-500.0,0.00052217,120]
[320946850,1711720288860,-531.30202197,0.00052217,120]
[320946851,1711720288870,-500.0,0.00052217,120]
[320946852,1711720288880,-500.0,0.00052217,120]
[320946853,1711720288889,-500.0,0.00052217,2]
[320946854,1711720288899,-230.4,0.00052219,120]
[320946855,1711720288909,-500.0,0.00052226,120]
[320946856,1711720288919,-500.0,0.00052226,120]
[320946857,1711720288929,-500.0,0.00052226,120]
[320946858,1711720288938,-500.0,0.00052226,120]
[320946859,1711720288948,-508.99,0.00052226,120]
[320946860,1711720288957,-500.0,0.00052226,120]
[320946861,1711720288967,-500.0,0.00052226,120]
[320946862,1711720288977,-500.0,0.00052226,120]
[320946863,1711720288987,-1000.0,0.00052251,120]
[320946864,1711720288998,-500.0,0.00052328,120]
[320946865,1711720289008,-500.0,0.00052328,120]
[320946866,1711720289018,-503.52,0.00052328,120]
[320946867,1711720289028,-500.0,0.00052328,120]
[320946868,1711720289038,-500.0,0.00052328,120]
[320946869,1711720289048,-500.0,0.00052328,120]
[320946870,1711720289057,-500.0,0.00052328,120]
[320946871,1711720289066,-234.90657379,0.00052328,120]
[320946872,1711720289077,-500.0,0.00052328,120]
[320946873,1711720289086,-500.0,0.00052328,120]
[320946874,1711720289095,-500.0,0.00052328,120]
[320946875,1711720289105,-500.0,0.00052328,120]
[320946876,1711720289114,-500.0,0.00052328,120]
[320946877,1711720289123,-500.0,0.00052328,120]
[320946878,1711720289133,-500.0,0.00052328,120]
[320946879,1711720289142,-500.0,0.00052328,120]
[320946880,1711720289152,-150.0,0.00052328,120]
[320946881,1711720289161,-867.0,0.00052328,120]
[320946882,1711720289173,-500.0,0.00052328,120]
[320946883,1711720289183,-500.0,0.00052328,120]
[320946884,1711720289192,-500.0,0.00052328,120]
[320946885,1711720289202,-500.0,0.00052328,120]
[320946886,1711720289211,-564.0325897,0.00052328,120]
[320946887,1711720289221,-627.18,0.00052328,120]
[320946888,1711720289231,-500.0,0.00052328,120]
[320946889,1711720289241,-714.94,0.00052328,120]
[320946890,1711720289251,-500.0,0.00052328,120]
[320946891,1711720289261,-538.01,0.00052328,120]
[320946892,1711720289270,-1007.7,0.00052328,120]
[320946893,1711720289280,-686.37,0.00052328,120]
[320946894,1711720289291,-500.0,0.00052328,120]
[320946895,1711720289300,-982.95,0.00052328,120]
[320946896,1711720289310,-500.0,0.00052328,120]
[320946897,1711720289320,-500.0,0.00052328,120]
[320946898,1711720289330,-500.0,0.00052328,120]
[320946899,1711720289340,-500.0,0.00052328,120]
[320946900,1711720289350,-774.88,0.00052328,120]
[320946901,1711720289359,-500.0,0.00052328,120]
[320946902,1711720289368,-500.0,0.00052328,120]
[320946903,1711720289378,-679.79,0.00052328,120]
[320946904,1711720289392,-500.0,0.00052328,120]
[320946905,1711720289401,-500.0,0.00052328,120]
[320946906,1711720289410,-500.0,0.00052328,120]
[320946907,1711720289422,-500.0,0.00052328,120]
[320946908,1711720289432,-853.69,0.00052328,120]
[320946909,1711720289442,-500.0,0.00052328,120]
[320946910,1711720289452,-645.05,0.00052328,120]
[320946911,1711720289462,-896.8,0.00052328,120]
[320946912,1711720289475,-786.23,0.00052328,120]
[320946913,1711720289487,-522.53,0.00052328,120]
[320946914,1711720289497,-500.0,0.00052328,120]
[320946915,1711720289507,-500.0,0.00052328,120]
[320946916,1711720289517,-594.23,0.00052328,120]
[320946917,1711720289528,-9880.52,0.00052328,120]
[320946918,1711720289538,-1749.42,0.00052328,120]
[320946919,1711720289547,-500.0,0.00052328,120]
[320946920,1711720289557,-500.0,0.00052328,120]
[320946921,1711720289567,-573.33,0.00052328,120]
[320946922,1711720289576,-271.71392758,0.00052328,120]
[320946923,1711720289586,-512.31,0.00052328,120]
[320946924,1711720289596,-187.10540977,0.00052328,120]
[320946925,1711720289607,-500.0,0.00052328,120]
[320946926,1711720289617,-500.0,0.00052328,120]
[320946927,1711720289626,-500.0,0.00052328,120]
[320946928,1711720289636,-500.0,0.00052328,120]
[320946929,1711720289646,-545.68,0.00052328,120]
[320946930,1711720289656,-500.0,0.00052328,120]
[320946931,1711720289667,-500.0,0.00052328,120]
[320946932,1711720289677,-500.0,0.00052328,80]
[320946933,1711720289686,-1990.61,0.00052328,120]
[320946934,1711720289696,-500.0,0.00052328,120]
[320946935,1711720289705,-500.0,0.00052328,120]
[320946936,1711720289715,-500.0,0.00052328,120]
[320946937,1711720289725,-1229.22,0.00052328,120]
[320946938,1711720289734,-817.16,0.00052328,120]
[320946939,1711720289744,-500.0,0.00052328,120]
[320946940,1711720289754,-500.0,0.00052328,120]
[320946941,1711720289763,-500.0,0.00052328,120]
[320946942,1711720289774,-500.0,0.00052328,120]
[320946943,1711720289784,-553.19,0.00052328,120]
[320946944,1711720289795,-770.3,0.00052328,120]
[320946945,1711720289806,-4469.38,0.00052328,120]
[320946946,1711720289815,-500.0,0.00052328,120]
[320946947,1711720289826,-679.26,0.00052328,120]
[320946948,1711720289836,-713.39,0.00052328,120]
[320946949,1711720289846,-885.4,0.00052328,120]
[320946950,1711720289856,-500.0,0.00052328,120]
[320946951,1711720289866,-500.0,0.00052328,120]
[320946952,1711720289877,-1238.51,0.00052328,120]
[320946953,1711720289887,-500.0,0.00052328,120]
[320946954,1711720289898,-1635.01,0.00052328,120]
[320946955,1711720289908,-576.18,0.00052328,120]
[320946956,1711720289921,-855.16,0.00052328,120]
[320946957,1711720289931,-500.0,0.00052328,120]
[320946958,1711720289940,-531.08,0.00052328,120]
[320946959,1711720289950,-500.0,0.00052328,120]
[320946960,1711720289961,-500.0,0.00052328,120]
[320946961,1711720289971,-500.0,0.00052328,120]
[320946962,1711720289982,-534.13,0.00052328,120]
[320946963,1711720289992,-500.0,0.00052328,120]
[320946964,1711720290002,-6532.1,0.00052328,120]
[320946965,1711720290011,-523.64,0.00052328,120]
[320946966,1711720290022,-560.66,0.00052328,120]
[320946967,1711720290032,-502.42,0.00052328,120]
[320946968,1711720290042,-723.57,0.00052328,120]
[320946969,1711720290052,-1682.83,0.00052328,120]
[320946970,1711720290061,-638.67,0.00052328,120]
[320946971,1711720290071,-503.68,0.00052328,120]
[320946972,1711720290081,-1618.73,0.00052328,120]
[320946973,1711720290090,-3551.69,0.00052328,120]
[320946974,1711720290212,-500.0,0.00052328,120]
[320946975,1711720290233,-500.0,0.00052328,120]
[320946976,1711720290243,-1902.79,0.00052328,120]
[320946977,1711720290254,-500.0,0.00052328,120]
[320946978,1711720290264,-523.06,0.00052328,120]
[320946979,1711720290274,-500.0,0.00052328,120]
[320946980,1711720290284,-783.41,0.00052328,120]
[320946981,1711720290294,-1110.8,0.00052328,120]
[320946982,1711720290304,-500.0,0.00052328,120]
[320946983,1711720290314,-500.0,0.00052328,120]
[320946984,1711720290324,-516.74,0.00052328,120]
[320946985,1711720290333,-500.0,0.00052328,120]
[320946986,1711720290343,-728.83,0.00052328,21]
[320946987,1711720290353,-500.0,0.00052328,120]
[320946988,1711720290363,-1108.05,0.00052328,120]
[320946989,1711720290373,-988.84,0.00052328,120]
[320946990,1711720290383,-500.0,0.00052328,120]
[320946991,1711720290393,-627.93,0.00052328,120]
[320946992,1711720290402,-500.0,0.00052328,120]
[320946993,1711720290414,-500.0,0.00052328,120]
[320946994,1711720290425,-743.49,0.00052328,120]
[320946995,1711720290435,-264.79991036,0.00052328,2]
[320946996,1711720290445,-1845.14,0.00052328,120]
[320946997,1711720290455,-826.94,0.00052328,120]
[320946998,1711720290465,-838.3,0.00052328,120]
[320946999,1711720290475,-679.1,0.00052328,120]
[320947000,1711720290484,-2055.89,0.00052328,120]
[320947001,1711720290496,-617.83,0.00052328,120]
[320947002,1711720290507,-500.0,0.00052328,120]
[320947003,1711720290516,-1240.17,0.00052328,120]
[320947004,1711720290526,-500.0,0.00052328,120]
[320947005,1711720290536,-500.0,0.00052328,120]
[320947006,1711720290547,-663.18,0.00052328,120]
[320947007,1711720290557,-500.0,0.00052328,120]
[320947008,1711720290567,-500.0,0.00052328,120]
[320947009,1711720290577,-1451.79,0.00052328,120]
[320947010,1711720290587,-500.0,0.00052328,120]
[320947011,1711720290597,-500.0,0.00052328,120]
[320947012,1711720290607,-500.0,0.00052328,2]
[320947013,1711720290617,-500.0,0.00052328,120]
[320947014,1711720290627,-500.0,0.00052328,120]
[320947015,1711720290639,-159.87362637,0.0005236,60]
[320947016,1711720290649,-503.57204277,0.00052368,120]
[320947017,1711720290660,-523.0,0.000524,40]
[320947018,1711720290672,-2618.529,0.00052406,120]
[320947019,1711720290683,-165.49,0.00052406,120]
[320947020,1711720290693,-150.0,0.00052406,120]
[320947021,1711720290704,-296.445,0.00052406,120]
[320947022,1711720290714,-303.23412449,0.0005248,2]
[320947023,1711720290724,-2618.83953372,0.00052491,120]
[320947024,1711720290734,-1571.8104668,0.00052491,31]
[320947025,1711720290744,-500.0,0.00052491,120]
[320947026,1711720290754,-500.0,0.00052491,120]
[320947027,1711720290764,-500.0,0.00052491,120]
[320947028,1711720290774,-1137.41,0.00052491,120]
[320947029,1711720290785,-500.0,0.00052491,120]
[320947030,1711720290795,-500.0,0.00052491,120]
[320947031,1711720290806,-500.0,0.00052491,120]
[320947032,1711720290817,-500.0,0.00052491,120]
[320947033,1711720290828,-500.0,0.00052491,120]
[320947034,1711720290838,-359.90907949,0.00052491,120]
[320947035,1711720290848,-500.0,0.00052491,120]
[320947036,1711720290858,-500.0,0.00052491,120]
[320947037,1711720290868,-500.0,0.00052491,120]
[320947038,1711720290878,-500.0,0.00052491,120]
[320947039,1711720290888,-500.0,0.00052491,120]
[320947040,1711720290898,-500.0,0.00052491,120]
[320947041,1711720290908,-500.0,0.00052491,120]
[320947042,1711720290920,-500.0,0.00052491,120]
[320947043,1711720290930,-500.0,0.00052491,120]
[320947044,1711720290940,-630.38544029,0.00052491,120]
[320947045,1711720290950,-500.0,0.00052491,120]
[320947046,1711720290961,-500.0,0.00052491,120]
[320947047,1711720290971,-500.0,0.00052491,120]
[320947048,1711720290981,-500.0,0.00052491,120]
[320947049,1711720290992,-606.52996066,0.00052491,120]
[320947050,1711720291002,-500.0,0.00052491,2]
[320947051,1711720291013,-500.0,0.000525,120]
[320947052,1711720291023,-500.0,0.000525,120]
[320947053,1711720291033,-500.0,0.000525,120]
[320947054,1711720291043,-500.0,0.000525,120]
[320947055,1711720291054,-508.99,0.000525,120]
[320947056,1711720291065,-500.0,0.000525,120]
[320947057,1711720291074,-500.0,0.000525,120]
[320947058,1711720291085,-500.0,0.000525,120]
[320947059,1711720291095,-500.0,0.00052602,120]
[320947060,1711720291105,-500.0,0.00052602,120]
[320947061,1711720291115,-500.0,0.00052602,120]
[320947062,1711720291126,-500.0,0.00052602,120]
[320947063,1711720291135,-428.60482501,0.00052602,120]
[320947064,1711720291146,-500.0,0.00052602,120]
[320947065,1711720291156,-500.0,0.00052602,120]
[320947066,1711720291167,-500.0,0.00052602,120]
[320947067,1711720291177,-500.0,0.00052602,120]
[320947068,1711720291187,-500.0,0.00052602,120]
[320947069,1711720291198,-500.0,0.00052602,120]
[320947070,1711720291208,-500.0,0.00052602,120]
[320947071,1711720291219,-500.0,0.00052602,120]
[320947072,1711720291229,-150.0,0.00052602,120]
[320947073,1711720291239,-867.0,0.00052602,120]
[320947074,1711720291250,-649.64,0.00052602,120]
[320947075,1711720291260,-500.0,0.00052602,120]
[320947076,1711720291271,-441.44966263,0.00052602,120]
[320947077,1711720291282,-500.0,0.00052602,120]
[320947078,1711720291292,-627.18,0.00052602,120]
[320947079,1711720291303,-500.0,0.00052602,120]
[320947080,1711720291312,-714.94,0.00052602,120]
[320947081,1711720291322,-500.0,0.00052602,120]
[320947082,1711720291331,-538.01,0.00052602,120]
[320947083,1711720291341,-1007.7,0.00052602,120]
[320947084,1711720291351,-686.37,0.00052602,120]
[320947085,1711720291361,-500.0,0.00052602,120]
[320947086,1711720291370,-982.95,0.00052602,120]
[320947087,1711720291382,-500.0,0.00052602,120]
[320947088,1711720291393,-500.0,0.00052602,120]
[320947089,1711720291404,-500.0,0.00052602,120]
[320947090,1711720291417,-500.0,0.00052602,120]
[320947091,1711720291428,-774.88,0.00052602,120]
[320947092,1711720291438,-500.0,0.00052602,120]
[320947093,1711720291447,-500.0,0.00052602,120]
[320947094,1711720291457,-679.79,0.00052602,120]
[320947095,1711720291467,-500.0,0.00052602,120]
[320947096,1711720291477,-500.0,0.00052602,120]
[320947097,1711720291486,-500.0,0.00052602,120]
[320947098,1711720291497,-161.23691359,0.00052602,120]
[320947099,1711720291507,-853.69,0.00052602,120]
[320947100,1711720291516,-583.56967095,0.00052602,120]
[320947101,1711720291526,-896.8,0.00052602,120]
[320947102,1711720291536,-786.23,0.00052602,120]
[320947103,1711720291546,-522.53,0.00052602,120]
[320947104,1711720291556,-500.0,0.00052602,120]
[320947105,1711720291566,-500.0,0.00052602,120]
[320947106,1711720291576,-594.23,0.00052602,120]
[320947107,1711720291587,-9880.52,0.00052602,120]
[320947108,1711720291597,-1749.42,0.00052602,120]
[320947109,1711720291607,-500.0,0.00052602,120]
[320947110,1711720291617,-500.0,0.00052602,120]
[320947111,1711720291627,-573.33,0.00052602,120]
[320947112,1711720291637,-512.31,0.00052602,120]
[320947113,1711720291648,-500.0,0.00052602,120]
[320947114,1711720291659,-500.0,0.00052602,120]
[320947115,1711720291671,-500.0,0.00052602,120]
[320947116,1711720291681,-500.0,0.00052602,120]
[320947117,1711720291692,-545.68,0.00052602,120]
[320947118,1711720291702,-500.0,0.00052602,120]
[320947119,1711720291712,-500.0,0.00052602,120]
[320947120,1711720291722,-360.39068805,0.00052602,80]
[320947121,1711720291732,-1990.61,0.00052602,120]
[320947122,1711720291743,-500.0,0.00052602,120]
[320947123,1711720291753,-500.0,0.00052602,120]
[320947124,1711720291764,-500.0,0.00052602,120]
[320947125,1711720291774,-1229.22,0.00052602,120]
[320947126,1711720291784,-817.16,0.00052602,120]
[320947127,1711720291794,-500.0,0.00052602,120]
[320947128,1711720291804,-500.0,0.00052602,120]
[320947129,1711720291814,-500.0,0.00052602,120]
[320947130,1711720291823,-601.81846718,0.00052602,120]
[320947131,1711720291833,-553.19,0.00052602,120]
[320947132,1711720291843,-770.3,0.00052602,120]
[320947133,1711720291853,-4469.38,0.00052602,120]
[320947134,1711720291863,-500.0,0.00052602,120]
[320947135,1711720291873,-679.26,0.00052602,120]
[320947136,1711720291883,-713.39,0.00052602,120]
[320947137,1711720291893,-885.4,0.00052602,120]
[320947138,1711720291903,-429.36,0.00052602,120]
[320947139,1711720291912,-500.0,0.00052602,120]
[320947140,1711720291924,-1238.51,0.00052602,120]
[320947141,1711720291933,-500.0,0.00052602,120]
[320947142,1711720291944,-1635.01,0.00052602,120]
[320947143,1711720291954,-576.18,0.00052602,120]
[320947144,1711720291964,-855.16,0.00052602,120]
[320947145,1711720291974,-500.0,0.00052602,120]
[320947146,1711720291984,-531.08,0.00052602,120]
[320947147,1711720291994,-500.0,0.00052602,120]
[320947148,1711720292005,-590.36,0.00052602,120]
[320947149,1711720292015,-500.0,0.00052602,120]
[320947150,1711720292026,-534.13,0.00052602,120]
[320947151,1711720292036,-500.0,0.00052602,120]
[320947152,1711720292046,-6532.1,0.00052602,120]
[320947153,1711720292056,-523.64,0.00052602,120]
[320947154,1711720292066,-560.66,0.00052602,120]
[320947155,1711720292076,-502.42,0.00052602,120]
[320947156,1711720292086,-723.57,0.00052602,120]
[320947157,1711720292096,-1682.83,0.00052602,120]
[320947158,1711720292106,-638.67,0.00052602,120]
[320947159,1711720292116,-503.68,0.00052602,120]
[320947160,1711720292126,-1618.73,0.00052602,120]
[320947161,1711720292136,-3551.69,0.00052602,120]
[320947162,1711720292146,-630.12,0.00052602,120]
[320947163,1711720292156,-1046.84,0.00052602,120]
[320947164,1711720292168,-500.0,0.00052602,120]
[320947165,1711720292177,-1902.79,0.00052602,120]
[320947166,1711720292187,-500.0,0.00052602,120]
[320947167,1711720292197,-523.06,0.00052602,120]
[320947168,1711720292207,-500.0,0.00052602,120]
[320947169,1711720292218,-783.41,0.00052602,120]
[320947170,1711720292229,-1110.8,0.00052602,120]
[320947171,1711720292239,-500.0,0.00052602,120]
[320947172,1711720292249,-500.0,0.00052602,120]
[320947173,1711720292259,-516.74,0.00052602,120]
[320947174,1711720292270,-500.0,0.00052602,120]
[320947175,1711720292281,-728.83,0.00052602,21]
[320947176,1711720292291,-1108.05,0.00052602,120]
[320947177,1711720292302,-988.84,0.00052602,120]
[320947178,1711720292312,-500.0,0.00052602,120]
[320947179,1711720292322,-627.93,0.00052602,120]
[320947180,1711720292331,-500.0,0.00052602,120]
[320947181,1711720292341,-500.0,0.00052602,120]
[320947182,1711720292352,-743.49,0.00052602,120]
[320947183,1711720292363,-1845.14,0.00052602,120]
[320947184,1711720292372,-826.94,0.00052602,120]
[320947185,1711720292383,-838.3,0.00052602,120]
[320947186,1711720292393,-679.1,0.00052602,120]
[320947187,1711720292404,-2055.89,0.00052602,120]
[320947188,1711720292419,-617.83,0.00052602,120]
[320947189,1711720292430,-1240.17,0.00052602,120]
[320947190,1711720292441,-561.52,0.00052602,120]
[320947191,1711720292454,-500.0,0.00052602,120]
[320947192,1711720292464,-663.18,0.00052602,120]
[320947193,1711720292474,-556.6,0.00052602,120]
[320947194,1711720292485,-500.0,0.00052602,120]
[320947195,1711720292496,-1451.79,0.00052602,120]
[320947196,1711720292507,-500.0,0.00052602,120]
[320947197,1711720292516,-500.0,0.00052602,120]
[320947198,1711720292645,-500.0,0.00052602,2]
[320947199,1711720292657,-266.61,0.00052602,120]
[320947200,1711720292669,-500.0,0.00052602,120]
[320947201,1711720292679,-2257.88067085,0.00052734,2]
[320947202,1711720292688,-500.0,0.00052765,120]
[320947203,1711720292698,-500.0,0.00052765,120]
[320947204,1711720292707,-500.0,0.00052765,120]
[320947205,1711720292717,-1137.41,0.00052765,120]
[320947206,1711720292728,-500.0,0.00052765,120]
[320947207,1711720292739,-500.0,0.00052765,120]
[320947208,1711720292750,-500.0,0.00052765,120]
[320947209,1711720292761,-500.0,0.00052765,120]
[320947210,1711720292772,-500.0,0.00052765,120]
[320947211,1711720292782,-500.0,0.00052765,120]
[320947212,1711720292793,-271.83839361,0.00052765,120]
[320947213,1711720292803,-500.0,0.00052765,120]
[320947214,1711720292813,-500.0,0.00052765,120]
[320947215,1711720292823,-453.33,0.00052765,120]
[320947216,1711720292833,-500.0,0.00052765,120]
[320947217,1711720292843,-500.0,0.00052765,120]
[320947218,1711720292853,-500.0,0.00052765,120]
[320947219,1711720292863,-500.0,0.00052765,120]
[320947220,1711720292872,-621.59109236,0.00052765,120]
[320947221,1711720292882,-500.0,0.00052765,120]
[320947222,1711720292892,-500.0,0.00052765,120]
[320947223,1711720292902,-500.0,0.00052765,120]
[320947224,1711720292912,-500.0,0.00052765,2]
[320947225,1711720292923,-500.0,0.00052774,120]
[320947226,1711720292933,-500.0,0.00052774,120]
[320947227,1711720292943,-500.0,0.00052774,120]
[320947228,1711720292954,-500.0,0.00052774,120]
[320947229,1711720292965,-508.99,0.00052774,120]
[320947230,1711720292975,-500.0,0.00052774,120]
[320947231,1711720292986,-500.0,0.00052774,120]
[320947232,1711720292997,-500.0,0.00052774,120]
[320947233,1711720293007,-152.91,0.000528,7]
[320947234,1711720293017,-152.91,0.000528,7]
[320947235,1711720293027,-1584.51,0.000528,7]
[320947236,1711720293037,-1584.51,0.000528,7]
[320947237,1711720293048,-1584.51,0.000528,7]
[320947238,1711720293057,-1584.51,0.000528,7]
[320947239,1711720293068,-1584.51,0.000528,7]
[320947240,1711720293078,-1584.51,0.000528,7]
[320947241,1711720293088,-1584.51,0.000528,7]
[320947242,1711720293098,-1584.51,0.000528,7]
[320947243,1711720293108,-1584.51,0.000528,7]
[320947244,1711720293119,-1584.51,0.000528,7]
[320947245,1711720293130,-1584.51,0.000528,7]
[320947246,1711720293141,-1584.51,0.000528,7]
[320947247,1711720293152,-1584.51,0.000528,7]
[320947248,1711720293162,-1584.51,0.000528,7]
[320947249,1711720293174,-1584.51,0.000528,7]
[320947250,1711720293184,-1584.51,0.000528,7]
[320947251,1711720293195,-1584.51,0.000528,7]